{"text_format":"1","workbook":"xlsx","n_sheets":3,"sheets":["Bestandsliste","Bestandsentnahmeliste","Lagerfachsuche"],"not_rendered":{"charts":0,"images":0,"macros":1,"external_links":0,"defined_names":8,"comments":0,"pivot_tables":0},"unopened":[],"bounds":{"document_bytes":16777216,"sheet_cells":100000,"rows_first":2000,"rows_last":500,"rows_between":2000,"halvings":0,"cell_chars":16384,"cell_head_chars":4096},"cells_cut":0,"cells_raw":0,"read":"whole","date_system":"1900"}

{"sheet":"Bestandsliste","index":0,"n_rows":15,"n_cols":11,"rows_kept":15,"cut":false,"hidden":false,"merged":[]}
[null,"BESTANDSLISTE"]
[null,"GESAMTBESTANDSWERT:","BESTANDSARTIKEL:","LAGERFACHANZAHL:","BESTANDSENTNAHMELISTE","LAGERFACHSUCHE"]
[null,{"$f":"SUM(Bestandsliste[BESTANDSWERT])","v":4649},{"$f":"COUNTA(Bestandsliste[BESCHREIBUNG])","v":11},{"$f":"SUMPRODUCT((1/COUNTIF(Bestandsliste[LAGERFACHNR.],Bestandsliste[LAGERFACHNR.]&\"\")))","v":6}]
[null,"SKU","BESCHREIBUNG","LAGERFACHNR.","ORT","EINHEIT","MENGE","NACHBESTELLMENGE","KOSTEN","BESTANDSWERT","NACHBESTELLEN"]
[null,"SP7875","Artikel 1","T345",{"$f":"IFERROR(VLOOKUP(Bestandsliste[[#This Row],[LAGERFACHNR.]],Lagerfachsuche[],3,FALSE),\"\")","v":"Zeile 2, Platz 1"},"Je",20,10,30,{"$f":"Bestandsliste[[#This Row],[MENGE]]*Bestandsliste[[#This Row],[KOSTEN]]","v":600},{"$f":"IFERROR(IF(Bestandsliste[[#This Row],[MENGE]]<=Bestandsliste[[#This Row],[NACHBESTELLMENGE]],1,0),0)","v":0}]
[null,"TR87680","Objekt 2","T345",{"$f":"IFERROR(VLOOKUP(Bestandsliste[[#This Row],[LAGERFACHNR.]],Lagerfachsuche[],3,FALSE),\"\")","v":"Zeile 2, Platz 1"},"Je",30,15,40,{"$f":"Bestandsliste[[#This Row],[MENGE]]*Bestandsliste[[#This Row],[KOSTEN]]","v":1200},{"$f":"IFERROR(IF(Bestandsliste[[#This Row],[MENGE]]<=Bestandsliste[[#This Row],[NACHBESTELLMENGE]],1,0),0)","v":0}]
[null,"MK676554","Objekt 3","T5789",{"$f":"IFERROR(VLOOKUP(Bestandsliste[[#This Row],[LAGERFACHNR.]],Lagerfachsuche[],3,FALSE),\"\")","v":"Zeile 1, Platz 1"},"Je",10,5,5,{"$f":"Bestandsliste[[#This Row],[MENGE]]*Bestandsliste[[#This Row],[KOSTEN]]","v":50},{"$f":"IFERROR(IF(Bestandsliste[[#This Row],[MENGE]]<=Bestandsliste[[#This Row],[NACHBESTELLMENGE]],1,0),0)","v":0}]
[null,"YE98767","Artikel 4","T9876",{"$f":"IFERROR(VLOOKUP(Bestandsliste[[#This Row],[LAGERFACHNR.]],Lagerfachsuche[],3,FALSE),\"\")","v":"Zeile 3, Platz 2"},"Karton (10 St.)",40,10,15,{"$f":"Bestandsliste[[#This Row],[MENGE]]*Bestandsliste[[#This Row],[KOSTEN]]","v":600},{"$f":"IFERROR(IF(Bestandsliste[[#This Row],[MENGE]]<=Bestandsliste[[#This Row],[NACHBESTELLMENGE]],1,0),0)","v":0}]
[null,"XR23423","Artikel 5","T098",{"$f":"IFERROR(VLOOKUP(Bestandsliste[[#This Row],[LAGERFACHNR.]],Lagerfachsuche[],3,FALSE),\"\")","v":"Zeile 3, Platz 1"},"Je",12,10,26,{"$f":"Bestandsliste[[#This Row],[MENGE]]*Bestandsliste[[#This Row],[KOSTEN]]","v":312},{"$f":"IFERROR(IF(Bestandsliste[[#This Row],[MENGE]]<=Bestandsliste[[#This Row],[NACHBESTELLMENGE]],1,0),0)","v":0}]
[null,"PW98762","Artikel 6","T345",{"$f":"IFERROR(VLOOKUP(Bestandsliste[[#This Row],[LAGERFACHNR.]],Lagerfachsuche[],3,FALSE),\"\")","v":"Zeile 2, Platz 1"},"Je",7,10,50,{"$f":"Bestandsliste[[#This Row],[MENGE]]*Bestandsliste[[#This Row],[KOSTEN]]","v":350},{"$f":"IFERROR(IF(Bestandsliste[[#This Row],[MENGE]]<=Bestandsliste[[#This Row],[NACHBESTELLMENGE]],1,0),0)","v":1}]
[null,"BM87684","Artikel 7","T349",{"$f":"IFERROR(VLOOKUP(Bestandsliste[[#This Row],[LAGERFACHNR.]],Lagerfachsuche[],3,FALSE),\"\")","v":"Zeile 1, Platz 2"},"Je",10,5,10,{"$f":"Bestandsliste[[#This Row],[MENGE]]*Bestandsliste[[#This Row],[KOSTEN]]","v":100},{"$f":"IFERROR(IF(Bestandsliste[[#This Row],[MENGE]]<=Bestandsliste[[#This Row],[NACHBESTELLMENGE]],1,0),0)","v":0}]
[null,"BH67655","Artikel 8","T5789",{"$f":"IFERROR(VLOOKUP(Bestandsliste[[#This Row],[LAGERFACHNR.]],Lagerfachsuche[],3,FALSE),\"\")","v":"Zeile 1, Platz 1"},"Je",19,10,3,{"$f":"Bestandsliste[[#This Row],[MENGE]]*Bestandsliste[[#This Row],[KOSTEN]]","v":57},{"$f":"IFERROR(IF(Bestandsliste[[#This Row],[MENGE]]<=Bestandsliste[[#This Row],[NACHBESTELLMENGE]],1,0),0)","v":0}]
[null,"WT98768","Artikel 9","T9875",{"$f":"IFERROR(VLOOKUP(Bestandsliste[[#This Row],[LAGERFACHNR.]],Lagerfachsuche[],3,FALSE),\"\")","v":"Zeile 2, Platz 2"},"Paket (5 St.)",20,30,14,{"$f":"Bestandsliste[[#This Row],[MENGE]]*Bestandsliste[[#This Row],[KOSTEN]]","v":280},{"$f":"IFERROR(IF(Bestandsliste[[#This Row],[MENGE]]<=Bestandsliste[[#This Row],[NACHBESTELLMENGE]],1,0),0)","v":1}]
[null,"TS3456","Artikel 10","T349",{"$f":"IFERROR(VLOOKUP(Bestandsliste[[#This Row],[LAGERFACHNR.]],Lagerfachsuche[],3,FALSE),\"\")","v":"Zeile 1, Platz 2"},"Je",15,8,60,{"$f":"Bestandsliste[[#This Row],[MENGE]]*Bestandsliste[[#This Row],[KOSTEN]]","v":900},{"$f":"IFERROR(IF(Bestandsliste[[#This Row],[MENGE]]<=Bestandsliste[[#This Row],[NACHBESTELLMENGE]],1,0),0)","v":0}]
[null,"WDG123","Artikel 11","T349",{"$f":"IFERROR(VLOOKUP(Bestandsliste[[#This Row],[LAGERFACHNR.]],Lagerfachsuche[],3,FALSE),\"\")","v":"Zeile 1, Platz 2"},"Je",25,15,8,{"$f":"Bestandsliste[[#This Row],[MENGE]]*Bestandsliste[[#This Row],[KOSTEN]]","v":200},{"$f":"IFERROR(IF(Bestandsliste[[#This Row],[MENGE]]<=Bestandsliste[[#This Row],[NACHBESTELLMENGE]],1,0),0)","v":0}]

{"sheet":"Bestandsentnahmeliste","index":1,"n_rows":9,"n_cols":9,"rows_kept":9,"cut":false,"hidden":false,"merged":[]}
[null,"BESTANDSENTNAHMELISTE"]
[null,null,"BESTANDSLISTE"]
[]
[null,"BESTELLNR.","SKU","ENTNAHMEMENGE","VERFÜGBARE MENGE","ARTIKELBESCHREIBUNG","EINHEIT","LAGERFACHNR.","ORT"]
[null,"TP001-1","SP7875",3,{"$f":"IFERROR(VLOOKUP(Bestandsentnahmeliste[[#This Row],[SKU]],Bestandsliste[],6,FALSE),\"\")","v":20},{"$f":"IFERROR(VLOOKUP(Bestandsentnahmeliste[[#This Row],[SKU]],Bestandsliste[],2,FALSE),\"\")","v":"Artikel 1"},{"$f":"IFERROR(VLOOKUP(Bestandsentnahmeliste[[#This Row],[SKU]],Bestandsliste[],5,FALSE),\"\")","v":"Je"},{"$f":"IFERROR(VLOOKUP(Bestandsentnahmeliste[[#This Row],[SKU]],Bestandsliste[],3,FALSE),\"\")","v":"T345"},{"$f":"IFERROR(VLOOKUP(Bestandsentnahmeliste[[#This Row],[SKU]],Bestandsliste[],4,FALSE),\"\")","v":"Zeile 2, Platz 1"}]
[null,"TP001-1","YE98767",1,{"$f":"IFERROR(VLOOKUP(Bestandsentnahmeliste[[#This Row],[SKU]],Bestandsliste[],6,FALSE),\"\")","v":40},{"$f":"IFERROR(VLOOKUP(Bestandsentnahmeliste[[#This Row],[SKU]],Bestandsliste[],2,FALSE),\"\")","v":"Artikel 4"},{"$f":"IFERROR(VLOOKUP(Bestandsentnahmeliste[[#This Row],[SKU]],Bestandsliste[],5,FALSE),\"\")","v":"Karton (10 St.)"},{"$f":"IFERROR(VLOOKUP(Bestandsentnahmeliste[[#This Row],[SKU]],Bestandsliste[],3,FALSE),\"\")","v":"T9876"},{"$f":"IFERROR(VLOOKUP(Bestandsentnahmeliste[[#This Row],[SKU]],Bestandsliste[],4,FALSE),\"\")","v":"Zeile 3, Platz 2"}]
[null,"TP001-1","BM87684",2,{"$f":"IFERROR(VLOOKUP(Bestandsentnahmeliste[[#This Row],[SKU]],Bestandsliste[],6,FALSE),\"\")","v":10},{"$f":"IFERROR(VLOOKUP(Bestandsentnahmeliste[[#This Row],[SKU]],Bestandsliste[],2,FALSE),\"\")","v":"Artikel 7"},{"$f":"IFERROR(VLOOKUP(Bestandsentnahmeliste[[#This Row],[SKU]],Bestandsliste[],5,FALSE),\"\")","v":"Je"},{"$f":"IFERROR(VLOOKUP(Bestandsentnahmeliste[[#This Row],[SKU]],Bestandsliste[],3,FALSE),\"\")","v":"T349"},{"$f":"IFERROR(VLOOKUP(Bestandsentnahmeliste[[#This Row],[SKU]],Bestandsliste[],4,FALSE),\"\")","v":"Zeile 1, Platz 2"}]
[null,"TP001-1","TS3456",6,{"$f":"IFERROR(VLOOKUP(Bestandsentnahmeliste[[#This Row],[SKU]],Bestandsliste[],6,FALSE),\"\")","v":15},{"$f":"IFERROR(VLOOKUP(Bestandsentnahmeliste[[#This Row],[SKU]],Bestandsliste[],2,FALSE),\"\")","v":"Artikel 10"},{"$f":"IFERROR(VLOOKUP(Bestandsentnahmeliste[[#This Row],[SKU]],Bestandsliste[],5,FALSE),\"\")","v":"Je"},{"$f":"IFERROR(VLOOKUP(Bestandsentnahmeliste[[#This Row],[SKU]],Bestandsliste[],3,FALSE),\"\")","v":"T349"},{"$f":"IFERROR(VLOOKUP(Bestandsentnahmeliste[[#This Row],[SKU]],Bestandsliste[],4,FALSE),\"\")","v":"Zeile 1, Platz 2"}]
[null,"TP001-1","MK676554",3,{"$f":"IFERROR(VLOOKUP(Bestandsentnahmeliste[[#This Row],[SKU]],Bestandsliste[],6,FALSE),\"\")","v":10},{"$f":"IFERROR(VLOOKUP(Bestandsentnahmeliste[[#This Row],[SKU]],Bestandsliste[],2,FALSE),\"\")","v":"Objekt 3"},{"$f":"IFERROR(VLOOKUP(Bestandsentnahmeliste[[#This Row],[SKU]],Bestandsliste[],5,FALSE),\"\")","v":"Je"},{"$f":"IFERROR(VLOOKUP(Bestandsentnahmeliste[[#This Row],[SKU]],Bestandsliste[],3,FALSE),\"\")","v":"T5789"},{"$f":"IFERROR(VLOOKUP(Bestandsentnahmeliste[[#This Row],[SKU]],Bestandsliste[],4,FALSE),\"\")","v":"Zeile 1, Platz 1"}]

{"sheet":"Lagerfachsuche","index":2,"n_rows":11,"n_cols":7,"rows_kept":11,"cut":false,"hidden":false,"merged":[]}
[null,"LAGERFACHSUCHE"]
[null,"BESTANDSLISTE"]
[]
[null,"LAGERFACHNR.","BESCHREIBUNG","ORT","BREITE","HÖHE","TIEFE"]
[null,"T345","Großes Lagerfach","Zeile 2, Platz 1",50,10,10]
[null,"T5789","Kleines Lagerfach","Zeile 1, Platz 1",25,5,5]
[null,"T9876","Großes Lagerfach","Zeile 3, Platz 2",50,10,10]
[null,"T098","Mittleres Lagerfach","Zeile 3, Platz 1",30,7,10]
[null,"T349","Kleines Lagerfach","Zeile 1, Platz 2",25,5,5]
[null,"T5789","Großes Lagerfach","Zeile 4, Platz 5",50,10,10]
[null,"T9875","Großes Lagerfach","Zeile 2, Platz 2",50,10,10]